fUSD/lending_fUSD_20260405
["ID","MTS","AMOUNT","RATE_DAILY","PERIOD"]
[419784069,1775377853531,-150.0,0.00015245,2]
[419784070,1775377853540,-150.0,0.00015252,2]
[419784071,1775377853549,-150.0,0.00015253,2]
[419784072,1775377853559,-1048.98200346,0.0001526,2]
[419784073,1775377853568,-150.0,0.00015263,2]
[419784074,1775377853578,-150.0,0.00015263,2]
[419784075,1775377853587,-150.0,0.00015264,2]
[419784076,1775377853597,-150.0,0.00015273,2]
[419784077,1775377853606,-150.0,0.00015273,2]
[419784078,1775377853615,-150.0,0.00015277,2]
[419784079,1775377853624,-150.0,0.00015281,2]
[419784080,1775377853633,-150.0,0.00015284,2]
[419784081,1775377853642,-150.0,0.00015289,2]
[419784082,1775377853651,-150.0,0.00015296,2]
[419784083,1775377853661,-150.0,0.00015299,2]
[419784084,1775377853670,-150.0,0.00015302,2]
[419784085,1775377853680,-150.0,0.00015302,2]
[419784086,1775377853689,-150.0,0.00015303,2]
[419784087,1775377853698,-150.0,0.00015304,2]
[419784088,1775377853707,-150.0,0.00015305,2]
[419784089,1775377853716,-150.0,0.00015307,2]
[419784090,1775377853725,-1048.98200346,0.00015315,2]
[419784091,1775377853734,-150.0,0.00015317,2]
[419784092,1775377853744,-150.0,0.00015326,2]
[419784093,1775377853754,-150.0,0.00015328,2]
[419784094,1775377853763,-150.0,0.00015329,2]
[419784095,1775377853772,-150.0,0.00015331,2]
[419784096,1775377853782,-150.0,0.00015331,2]
[419784097,1775377853791,-150.0,0.00015335,2]
[419784098,1775377853800,-1003.50003004,0.00015337,2]
[419784099,1775377853810,-1000.0,0.00015342,2]
[419784100,1775377853821,-502.36401508,0.00015342,2]
[419784101,1775377853832,-1500.0,0.00015342,2]
[419784102,1775377853841,-2000.0,0.00015342,2]
[419784103,1775377853852,-693.24301277,0.00015342,2]
[419784104,1775377853862,-1500.0,0.00015342,2]
[419784105,1775377853871,-1143.48326881,0.00015342,2]
[419784106,1775377853882,-415.42400348,0.00015342,2]
[419784107,1775377853891,-347.07116371,0.00015342,2]
[419784108,1775377853900,-2000.0,0.00015342,2]
[419784109,1775377853911,-2000.0,0.00015342,2]
[419784110,1775377853920,-2000.0,0.00015342,2]
[419784111,1775377853931,-2000.0,0.00015342,2]
[419784112,1775377853943,-2000.0,0.00015342,2]
[419784113,1775377853953,-762.51968471,0.00015342,2]
[419784114,1775377853963,-500.0,0.00015342,2]
[419784115,1775377853972,-2000.0,0.00015342,2]
[419784116,1775377853983,-2000.0,0.00015342,2]
[419784117,1775377853992,-1189.37318328,0.00015342,2]
[419784118,1775377854003,-2000.0,0.00015342,2]
[419784119,1775377854014,-2000.0,0.00015342,2]
[419784120,1775377854025,-1253.85680119,0.00015342,2]
[419784121,1775377854036,-1000.0,0.00015342,2]
[419784122,1775377854047,-150.0,0.00015347,2]
[419784123,1775377854057,-150.0,0.00015353,2]
[419784124,1775377854069,-150.0,0.00015355,2]
[419784125,1775377854079,-150.0,0.0001536,2]
[419784126,1775377854088,-150.0,0.0001536,2]
[419784127,1775377854097,-150.0,0.0001536,2]
[419784128,1775377854106,-150.0,0.0001536,2]
[419784129,1775377854115,-347.56040135,0.0001536,2]
[419784130,1775377854126,-347.56,0.0001536,2]
[419784131,1775377854137,-468.18,0.0001536,2]
[419784132,1775377854149,-468.17,0.0001536,2]
[419784133,1775377854158,-474.30692472,0.0001536,2]
[419784134,1775377854167,-150.0,0.00015368,2]
[419784135,1775377854176,-1048.98200346,0.0001537,2]
[419784136,1775377854187,-150.0,0.00015371,2]
[419784137,1775377854196,-829.21400919,0.00015372,2]
[419784138,1775377854205,-150.0,0.00015374,2]
[419784139,1775377854215,-150.0,0.00015378,2]
[419784140,1775377854224,-1000.0,0.00015378,2]
[419784141,1775377854233,-150.0,0.00015381,2]
[419784142,1775377854243,-150.0,0.00015384,2]
[419784143,1775377854251,-150.0,0.00015389,2]
[419784144,1775377854261,-150.0,0.00015389,2]
[419784145,1775377854270,-150.0,0.00015389,2]
[419784146,1775377854280,-150.0,0.00015389,2]
[419784147,1775377854289,-150.0,0.00015392,2]
[419784148,1775377854298,-1000.0,0.00015398,2]
[419784149,1775377854307,-1000.0,0.00015398,2]
[419784150,1775377854316,-1000.0,0.00015398,2]
[419784151,1775377854326,-167.9673,0.000154,2]
[419784152,1775377854335,-151.51019978,0.00015404,2]
[419784153,1775377854344,-150.0,0.00015406,2]
[419784154,1775377854353,-150.0,0.00015407,2]
[419784155,1775377854362,-150.0,0.00015411,2]
[419784156,1775377854371,-150.0,0.00015413,2]
[419784157,1775377854380,-5888.0,0.00015418,2]
[419784158,1775377854390,-150.0,0.00015418,2]
[419784159,1775377854401,-150.0,0.00015418,2]
[419784160,1775377854412,-150.0,0.00015424,2]
[419784161,1775377854423,-150.0,0.00015425,2]
[419784162,1775377854433,-150.0,0.00015432,2]
[419784163,1775377854443,-150.0,0.00015432,2]
[419784164,1775377854452,-150.0,0.00015443,2]
[419784165,1775377854462,-150.0,0.00015443,2]
[419784166,1775377854471,-350.0,0.00015444,2]
[419784167,1775377854480,-150.0,0.00015447,2]
[419784168,1775377854490,-150.0,0.00015447,2]
[419784169,1775377854500,-1048.98200346,0.00015452,2]
[419784170,1775377854509,-150.0,0.00015453,2]
[419784171,1775377854518,-150.0,0.00015456,2]
[419784172,1775377854528,-150.0,0.00015458,2]
[419784173,1775377854537,-150.0,0.00015461,2]
[419784174,1775377854546,-150.0,0.00015467,2]
[419784175,1775377854555,-150.0,0.00015467,2]
[419784176,1775377854564,-150.0,0.00015467,2]
[419784177,1775377854574,-150.0,0.00015467,2]
[419784178,1775377854584,-150.0,0.00015474,2]
[419784179,1775377854594,-150.0,0.00015476,2]
[419784180,1775377854603,-150.0,0.00015476,2]
[419784181,1775377854613,-174.60324019,0.00015478,2]
[419784182,1775377854623,-150.0,0.00015479,2]
[419784183,1775377854632,-150.0,0.00015484,2]
[419784184,1775377854642,-150.0,0.00015488,2]
[419784185,1775377854651,-1000.0,0.00015493,2]
[419784186,1775377854660,-150.0,0.00015495,2]
[419784187,1775377854670,-150.0,0.00015497,2]
[419784188,1775377854680,-167.9673,0.000155,2]
[419784189,1775377854690,-150.0,0.00015505,2]
[419784190,1775377854700,-150.0,0.00015505,2]
[419784191,1775377854709,-1048.98200346,0.00015507,2]
[419784192,1775377854718,-150.0,0.0001551,2]
[419784193,1775377854727,-150.0,0.00015513,2]
[419784194,1775377854736,-150.0,0.00015515,2]
[419784195,1775377854747,-1000.0,0.00015515,2]
[419784196,1775377854756,-1000.0,0.00015515,2]
[419784197,1775377854765,-1000.0,0.00015515,2]
[419784198,1775377854776,-150.0,0.00015516,2]
[419784199,1775377854786,-150.0,0.0001552,2]
[419784200,1775377854796,-150.0,0.0001552,2]
[419784201,1775377854806,-38258.22545168,0.00015521,2]
[419784202,1775377854816,-150.0,0.00015533,2]
[419784203,1775377854827,-150.0,0.00015535,2]
[419784204,1775377854839,-150.0,0.00015535,2]
[419784205,1775377854849,-150.0,0.00015535,2]
[419784206,1775377854859,-150.0,0.00015537,2]
[419784207,1775377854868,-150.0,0.00015551,2]
[419784208,1775377854878,-150.0,0.00015552,2]
[419784209,1775377854887,-150.0,0.00015556,2]
[419784210,1775377854896,-150.0,0.00015558,2]
[419784211,1775377854906,-150.0,0.00015561,2]
[419784212,1775377854915,-1048.98200346,0.00015562,2]
[419784213,1775377854926,-150.0,0.00015564,2]
[419784214,1775377854937,-150.0,0.00015564,2]
[419784215,1775377854947,-150.0,0.00015569,2]
[419784216,1775377854956,-150.0,0.00015573,2]
[419784217,1775377854966,-150.0,0.00015579,2]
[419784218,1775377854976,-150.0,0.00015583,2]
[419784219,1775377854987,-150.0,0.00015584,2]
[419784220,1775377854998,-1000.0,0.00015585,2]
[419784221,1775377855008,-150.0,0.00015587,2]
[419784222,1775377855020,-150.0,0.00015587,2]
[419784223,1775377855031,-150.0,0.00015593,2]
[419784224,1775377855040,-150.0,0.00015593,2]
[419784225,1775377855049,-150.0,0.00015593,2]
[419784226,1775377855060,-167.9671,0.000156,2]
[419784227,1775377855069,-167.9673,0.000156,2]
[419784228,1775377855078,-150.0,0.000156,2]
[419784229,1775377855087,-150.0,0.000156,2]
[419784230,1775377855096,-1651.81367706,0.00015604,2]
[419784231,1775377855106,-200.0,0.00015604,2]
[419784232,1775377855115,-859.80605061,0.00015604,2]
[419784233,1775377855124,-200.0,0.00015604,2]
[419784234,1775377855134,-201.93286099,0.00015604,2]
[419784235,1775377855143,-150.0,0.00015604,2]
[419784236,1775377855152,-150.0,0.00015613,2]
[419784237,1775377855161,-889.96,0.00015613,2]
[419784238,1775377855171,-889.96,0.00015613,2]
[419784239,1775377855180,-889.96,0.00015613,2]
[419784240,1775377855189,-889.96,0.00015613,2]
[419784241,1775377855198,-889.97745143,0.00015613,2]
[419784242,1775377855208,-150.0,0.00015616,2]
[419784243,1775377855217,-1048.98200346,0.00015616,2]
[419784244,1775377855226,-150.0,0.00015621,2]
[419784245,1775377855236,-150.0,0.00015622,2]
[419784246,1775377855245,-150.0,0.00015622,2]
[419784247,1775377855254,-150.0,0.00015622,2]
[419784248,1775377855264,-150.0,0.00015627,2]
[419784249,1775377855273,-246.21556097,0.00015632,2]
[419784250,1775377855283,-150.0,0.00015639,2]
[419784251,1775377855292,-150.0,0.0001564,2]
[419784252,1775377855302,-150.0,0.00015642,2]
[419784253,1775377855311,-150.0,0.00015644,2]
[419784254,1775377855320,-150.0,0.00015648,2]
[419784255,1775377855329,-150.0,0.00015651,2]
[419784256,1775377855339,-150.0,0.00015651,2]
[419784257,1775377855348,-1000.0,0.00015651,2]
[419784258,1775377855357,-150.0,0.00015652,2]
[419784259,1775377855366,-40979.33701341,0.00015653,2]
[419784260,1775377855375,-155.80569417,0.00015656,2]
[419784261,1775377855384,-277.65175335,0.00015658,2]
[419784262,1775377855394,-150.0,0.00015658,2]
[419784263,1775377855404,-268.75840103,0.00015662,2]
[419784264,1775377855414,-150.0,0.00015663,2]
[419784265,1775377855423,-150.0,0.00015665,2]
[419784266,1775377855434,-150.0,0.00015676,2]
[419784267,1775377855444,-2201.46384682,0.0001568,2]
[419784268,1775377855679,-150.0,0.0001568,2]
[419784269,1775377855699,-150.0,0.0001568,2]
[419784270,1775377855710,-150.0,0.0001568,2]
[419784271,1775377855720,-150.0,0.0001568,2]
[419784272,1775377855730,-150.0,0.00015684,2]
[419784273,1775377855739,-150.0,0.00015687,2]
[419784274,1775377855749,-150.0,0.0001569,2]
[419784275,1775377855759,-150.0,0.00015694,2]
[419784276,1775377855769,-1586.36943919,0.00015695,2]
[419784277,1775377855778,-150.0,0.00015696,2]
[419784278,1775377855788,-1048.98200346,0.00015699,2]
[419784279,1775377855797,-153.40766799,0.000157,2]
[419784280,1775377855806,-167.9673,0.000157,2]
[419784281,1775377855815,-167.9673,0.000157,2]
[419784282,1775377855825,-2000.0,0.00015701,2]
[419784283,1775377855834,-150.0,0.00015705,2]
[419784284,1775377855844,-150.0,0.00015709,2]
[419784285,1775377855854,-150.0,0.00015709,2]
[419784286,1775377855863,-150.0,0.00015712,2]
[419784287,1775377855873,-150.0,0.00015712,2]
[419784288,1775377855883,-5888.0,0.00015716,2]
[419784289,1775377855892,-150.0,0.00015716,2]
[419784290,1775377855902,-150.0,0.00015722,2]
[419784291,1775377855911,-588.3229734,0.00015726,2]
[419784292,1775377855921,-150.0,0.00015726,2]
[419784293,1775377855930,-150.0,0.0001573,2]
[419784294,1775377855940,-150.0,0.00015731,2]
[419784295,1775377855949,-150.0,0.00015733,2]
[419784296,1775377855959,-150.0,0.00015733,2]
[419784297,1775377855968,-150.0,0.00015733,2]
[419784298,1775377855978,-508.0,0.00015734,4]
[419784299,1775377855987,-989.7,0.00015737,2]
[419784300,1775377855997,-1149.46,0.00015737,2]
[419784301,1775377856007,-150.0,0.00015738,2]
[419784302,1775377856016,-150.0,0.00015738,2]
[419784303,1775377856026,-150.0,0.00015742,2]
[419784304,1775377856035,-150.0,0.00015744,2]
[419784305,1775377856045,-150.0,0.00015747,2]
[419784306,1775377856055,-1000.0,0.00015748,2]
[419784307,1775377856064,-150.0,0.00015748,2]
[419784308,1775377856073,-518.19,0.00015749,2]
[419784309,1775377856083,-804.59,0.00015749,2]
[419784310,1775377856093,-985.23126213,0.0001575,2]
[419784311,1775377856103,-97697.2091726,0.0001575,2]
[419784312,1775377856112,-333.0,0.00015753,2]
[419784313,1775377856122,-5957.33,0.00015753,2]
[419784314,1775377856131,-1048.98200346,0.00015753,2]
[419784315,1775377856141,-150.0,0.00015756,2]
[419784316,1775377856151,-150.0,0.00015766,2]
[419784317,1775377856161,-150.0,0.00015767,2]
[419784318,1775377856171,-150.0,0.00015767,2]
[419784319,1775377856180,-150.0,0.00015768,2]
[419784320,1775377856189,-150.0,0.00015768,2]
[419784321,1775377856199,-500.0,0.00015773,2]
[419784322,1775377856208,-500.0,0.00015773,2]
[419784323,1775377856218,-150.0,0.00015776,2]
[419784324,1775377856227,-5888.0,0.00015779,2]
[419784325,1775377856237,-151.39,0.00015779,2]
[419784326,1775377856246,-151.39,0.00015779,2]
[419784327,1775377856256,-151.39,0.00015779,2]
[419784328,1775377856265,-151.39,0.00015779,2]
[419784329,1775377856275,-150.0,0.00015784,2]
[419784330,1775377856287,-33032.4137,0.00015786,2]
[419784331,1775377856296,-1000.0,0.00015786,2]
[419784332,1775377856306,-150.0,0.00015787,2]
[419784333,1775377856315,-150.0,0.00015789,2]
[419784334,1775377856324,-150.0,0.00015791,2]
[419784335,1775377856334,-150.0,0.00015794,2]
[419784336,1775377856343,-150.0,0.00015796,2]
[419784337,1775377856352,-150.0,0.00015796,2]
[419784338,1775377856362,-500.0,0.00015798,2]
[419784339,1775377856372,-167.9673,0.000158,2]
[419784340,1775377856381,-5000.0,0.000158,2]
[419784341,1775377856391,-150.0,0.000158,2]
[419784342,1775377856400,-811.94017057,0.000158,2]
[419784343,1775377856410,-2000.0,0.00015801,2]
[419784344,1775377856419,-150.0,0.00015802,2]
[419784345,1775377856429,-440.0,0.00015806,2]
[419784346,1775377856439,-150.0,0.00015808,2]
[419784347,1775377856449,-1048.98200346,0.00015808,2]
[419784348,1775377856458,-150.0,0.00015811,2]
[419784349,1775377856467,-1000.0,0.00015816,2]
[419784350,1775377856477,-1000.0,0.00015816,2]
[419784351,1775377856486,-1000.0,0.00015816,2]
[419784352,1775377856497,-1000.0,0.00015816,2]
[419784353,1775377856507,-1000.0,0.00015816,2]
[419784354,1775377856518,-150.0,0.00015819,2]
[419784355,1775377856529,-150.0,0.0001582,2]
[419784356,1775377856540,-440.0,0.00015822,2]
[419784357,1775377856550,-150.0,0.00015822,2]
[419784358,1775377856561,-500.0,0.00015822,2]
[419784359,1775377856571,-200.0,0.00015822,2]
[419784360,1775377856582,-150.0,0.00015825,2]
[419784361,1775377856592,-150.0,0.00015825,2]
[419784362,1775377856603,-506.0,0.0001583,2]
[419784363,1775377856613,-150.0,0.00015832,2]
[419784364,1775377856622,-243.30922088,0.00015832,2]
[419784365,1775377856632,-150.0,0.00015835,5]
[419784366,1775377856642,-5888.0,0.00015838,2]
[419784367,1775377856652,-150.0,0.00015838,2]
[419784368,1775377856663,-518.19,0.00015839,2]
[419784369,1775377856673,-518.19,0.00015839,2]
[419784370,1775377856683,-518.19,0.00015839,2]
[419784371,1775377856693,-518.19,0.00015839,2]
[419784372,1775377856703,-518.32,0.00015839,2]
[419784373,1775377856712,-804.59,0.00015839,2]
[419784374,1775377856722,-804.59,0.00015839,2]
[419784375,1775377856732,-804.59,0.00015839,2]
[419784376,1775377856741,-804.59,0.00015839,2]
[419784377,1775377856751,-804.73,0.00015839,2]
[419784378,1775377856760,-989.7,0.00015839,2]
[419784379,1775377856770,-1149.46,0.00015839,2]
[419784380,1775377856779,-166143.042,0.0001584,2]
[419784381,1775377856789,-150.0,0.0001584,2]
[419784382,1775377856799,-150.0,0.0001584,2]
[419784383,1775377856808,-2000.0,0.0001584,2]
[419784384,1775377856818,-2000.0,0.0001584,2]
[419784385,1775377856829,-150.0,0.00015845,2]
[419784386,1775377856838,-500.0,0.00015847,2]
[419784387,1775377856849,-2000.0,0.0001585,2]
[419784388,1775377856859,-150.0,0.00015853,2]
[419784389,1775377856869,-150.0,0.00015855,2]
[419784390,1775377856879,-150.0,0.00015855,2]
[419784391,1775377856890,-150.0,0.00015856,2]
[419784392,1775377856900,-150.0,0.00015861,2]
[419784393,1775377856910,-185.0,0.00015862,2]
[419784394,1775377856920,-1048.98200346,0.00015863,2]
[419784395,1775377856930,-150.0,0.00015871,2]
[419784396,1775377856939,-500.0,0.00015871,2]
[419784397,1775377856948,-150.0,0.00015872,2]
[419784398,1775377856959,-150.0,0.00015874,2]
[419784399,1775377856970,-150.0,0.00015874,2]
[419784400,1775377856980,-150.0,0.00015884,2]
[419784401,1775377856991,-150.0,0.00015884,2]
[419784402,1775377857001,-778.23,0.0001589,2]
[419784403,1775377857010,-500.0,0.0001589,2]
[419784404,1775377857021,-500.0,0.0001589,2]
[419784405,1775377857031,-500.0,0.0001589,2]
[419784406,1775377857042,-500.0,0.0001589,2]
[419784407,1775377857051,-500.0,0.0001589,2]
[419784408,1775377857061,-500.0,0.0001589,2]
[419784409,1775377857072,-500.0,0.0001589,2]
[419784410,1775377857083,-500.0,0.0001589,2]
[419784411,1775377857092,-500.0,0.0001589,2]
[419784412,1775377857104,-879.87,0.0001589,2]
[419784413,1775377857114,-500.0,0.0001589,2]
[419784414,1775377857123,-551.83212521,0.0001589,2]
[419784415,1775377857134,-500.0,0.0001589,2]
[419784416,1775377857145,-1547.57,0.0001589,2]
[419784417,1775377857155,-500.0,0.0001589,2]
[419784418,1775377857165,-1289.11,0.0001589,2]
[419784419,1775377857174,-757.6654757,0.0001589,2]
[419784420,1775377857184,-1947.77606198,0.0001589,2]
[419784421,1775377857194,-2500.0,0.0001589,2]
[419784422,1775377857203,-2006.37622858,0.0001589,2]
[419784423,1775377857212,-323.00574972,0.0001589,2]
[419784424,1775377857223,-500.0,0.0001589,2]
[419784425,1775377857233,-704.40114749,0.0001589,2]
[419784426,1775377857243,-2500.0,0.0001589,2]
[419784427,1775377857252,-950.63286364,0.0001589,2]
[419784428,1775377857262,-2500.0,0.0001589,2]
[419784429,1775377857272,-1100.33490613,0.0001589,2]
[419784430,1775377857281,-25000.0,0.00015891,3]
[419784431,1775377857291,-150.0,0.00015892,2]
[419784432,1775377857301,-150.0,0.00015893,2]
[419784433,1775377857311,-150.0,0.00015895,2]
[419784434,1775377857320,-150.0,0.00015897,2]
[419784435,1775377857329,-151.0,0.00015897,2]
[419784436,1775377857338,-778.23,0.00015899,2]
[419784437,1775377857348,-778.23,0.00015899,2]
[419784438,1775377857357,-778.23,0.00015899,2]
[419784439,1775377857367,-500.0,0.00015899,2]
[419784440,1775377857376,-500.0,0.00015899,2]
[419784441,1775377857385,-500.0,0.00015899,2]
[419784442,1775377857394,-500.0,0.00015899,2]
[419784443,1775377857403,-500.0,0.00015899,2]
[419784444,1775377857413,-500.0,0.00015899,2]
[419784445,1775377857422,-500.0,0.00015899,2]
[419784446,1775377857431,-500.0,0.00015899,2]
[419784447,1775377857440,-500.0,0.00015899,2]
[419784448,1775377857450,-500.0,0.00015899,2]
[419784449,1775377857460,-500.0,0.00015899,2]
[419784450,1775377857470,-500.0,0.00015899,2]
[419784451,1775377857479,-500.0,0.00015899,2]
[419784452,1775377857489,-500.0,0.00015899,2]
[419784453,1775377857499,-500.0,0.00015899,2]
[419784454,1775377857508,-500.0,0.00015899,2]
[419784455,1775377857518,-500.0,0.00015899,2]
[419784456,1775377857527,-500.0,0.00015899,2]
[419784457,1775377857537,-500.0,0.00015899,2]
[419784458,1775377857546,-500.0,0.00015899,2]
[419784459,1775377857555,-500.0,0.00015899,2]
[419784460,1775377857565,-500.0,0.00015899,2]
[419784461,1775377857574,-500.0,0.00015899,2]
[419784462,1775377857584,-500.0,0.00015899,2]
[419784463,1775377857593,-500.0,0.00015899,2]
[419784464,1775377857603,-500.0,0.00015899,2]
[419784465,1775377857612,-500.0,0.00015899,2]
[419784466,1775377857621,-879.87,0.00015899,2]
[419784467,1775377857631,-879.87,0.00015899,2]
[419784468,1775377857640,-879.87,0.00015899,2]
[419784469,1775377857650,-500.0,0.00015899,2]
[419784470,1775377857659,-500.0,0.00015899,2]
[419784471,1775377857668,-500.0,0.00015899,2]
[419784472,1775377857678,-459.70598754,0.00015899,2]
[419784473,1775377857688,-214.78070273,0.00015899,2]
[419784474,1775377857697,-500.0,0.00015899,2]
[419784475,1775377857707,-500.0,0.00015899,2]
[419784476,1775377857716,-500.0,0.00015899,2]
[419784477,1775377857726,-989.7,0.00015899,2]
[419784478,1775377857736,-989.7,0.00015899,2]
[419784479,1775377857745,-1547.57,0.00015899,2]
[419784480,1775377857755,-1547.57,0.00015899,2]
[419784481,1775377857766,-1547.57,0.00015899,2]
[419784482,1775377857777,-989.7,0.00015899,2]
[419784483,1775377857789,-989.7,0.00015899,2]
[419784484,1775377857799,-1149.46,0.00015899,2]
[419784485,1775377857810,-1149.46,0.00015899,2]
[419784486,1775377857821,-1149.46,0.00015899,2]
[419784487,1775377857830,-1149.46,0.00015899,2]
[419784488,1775377857840,-500.0,0.00015899,2]
[419784489,1775377857849,-500.0,0.00015899,2]
[419784490,1775377857859,-500.0,0.00015899,2]
[419784491,1775377857868,-1289.11,0.00015899,2]
[419784492,1775377857878,-1289.11,0.00015899,2]
[419784493,1775377857888,-1289.11,0.00015899,2]
[419784494,1775377857898,-747063.37042181,0.000159,5]
[419784495,1775377857907,-25000.0,0.000159,3]
[419784496,1775377857917,-297.3644976,0.000159,2]
[419784497,1775377857926,-839.79946318,0.000159,2]
[419784498,1775377857936,-8044.62624166,0.000159,2]
[419784499,1775377857945,-200.0,0.000159,2]
[419784500,1775377857954,-24594.73927756,0.000159,2]
[419784501,1775377857964,-10000.0,0.000159,2]
[419784502,1775377857973,-2000.0,0.000159,2]
[419784503,1775377857983,-200.0,0.000159,2]
[419784504,1775377857992,-301.03881414,0.000159,5]
[419784505,1775377858001,-152.0,0.000159,5]
[419784506,1775377858010,-1525.0,0.000159,5]
[419784507,1775377858020,-152.0,0.000159,5]
[419784508,1775377858029,-1525.0,0.000159,5]
[419784509,1775377858039,-161.0,0.000159,5]
[419784510,1775377858049,-152.0,0.000159,5]
[419784511,1775377858058,-1525.0,0.000159,5]
[419784512,1775377858068,-161.0,0.000159,5]
[419784513,1775377858077,-152.0,0.000159,5]
[419784514,1775377858087,-1525.0,0.000159,5]
[419784515,1775377858097,-161.0,0.000159,5]
[419784516,1775377858202,-152.0,0.000159,5]
[419784517,1775377858212,-1525.0,0.000159,5]
[419784518,1775377858222,-166.37279344,0.000159,5]
[419784519,1775377858231,-152.0,0.000159,5]
[419784520,1775377858241,-1525.0,0.000159,5]
[419784521,1775377858250,-152.0,0.000159,5]
[419784522,1775377858259,-1525.0,0.000159,5]
[419784523,1775377858268,-152.0,0.000159,5]
[419784524,1775377858278,-1525.0,0.000159,5]
[419784525,1775377858287,-152.0,0.000159,5]
[419784526,1775377858296,-1525.0,0.000159,5]
[419784527,1775377858305,-157.47547331,0.000159,5]
[419784528,1775377858314,-152.0,0.000159,5]
[419784529,1775377858324,-1525.0,0.000159,5]
[419784530,1775377858335,-152.0,0.000159,5]
[419784531,1775377858344,-1525.0,0.000159,5]
[419784532,1775377858353,-152.0,0.000159,5]
[419784533,1775377858362,-1525.0,0.000159,5]
[419784534,1775377858371,-154.50523658,0.000159,5]
[419784535,1775377858379,-1525.0,0.000159,5]
[419784536,1775377858388,-1525.0,0.000159,5]
[419784537,1775377858398,-1525.0,0.000159,5]
[419784538,1775377858407,-1525.0,0.000159,5]
[419784539,1775377858416,-1575.70159455,0.000159,5]
[419784540,1775377858426,-151.0,0.000159,2]
[419784541,1775377858436,-151.0,0.000159,2]
[419784542,1775377858445,-774.96562127,0.000159,3]
[419784543,1775377858455,-306.0,0.000159,2]
[419784544,1775377858464,-313.0,0.000159,2]
[419784545,1775377858473,-851.442194,0.000159,2]
[419784546,1775377858483,-851.442194,0.000159,2]
[419784547,1775377858492,-851.442194,0.000159,2]
[419784548,1775377858503,-851.442194,0.000159,2]
[419784549,1775377858513,-151.0,0.000159,2]
[419784550,1775377858522,-151.0,0.000159,2]
[419784551,1775377858531,-151.0,0.000159,2]
[419784552,1775377858541,-151.0,0.000159,2]
[419784553,1775377858550,-151.0,0.000159,2]
[419784554,1775377858560,-151.0,0.000159,2]
[419784555,1775377858569,-151.0,0.000159,2]
[419784556,1775377858578,-153.964346,0.000159,2]
[419784557,1775377858588,-332.258444,0.000159,2]
[419784558,1775377858598,-332.258444,0.000159,2]
[419784559,1775377858607,-332.258444,0.000159,2]
[419784560,1775377858616,-332.258444,0.000159,2]
[419784561,1775377858626,-553.958559,0.000159,2]
[419784562,1775377858635,-878.0,0.000159,2]
[419784563,1775377858645,-553.958559,0.000159,2]
[419784564,1775377858654,-553.958559,0.000159,2]
[419784565,1775377858663,-553.958559,0.000159,2]
[419784566,1775377858672,-151.0,0.000159,2]
[419784567,1775377858681,-151.0,0.000159,2]
[419784568,1775377858691,-31143.28476019,0.000159,2]